[Event "*** Titled Tuesday Blitz"]
[Site "Chess.com"]
[Date "2020.02.04"]
[Round "5"]
[White "TheBigBoss04"]
[Black "GadimbayliA"]
[Result "1/2-1/2"]
[WhiteElo "2701"]
[BlackElo "2929"]
[TimeControl "180+2"]
[EndTime "10:10:08 PST"]
[Termination "Game drawn by stalemate"]

1. d4 {[%clk 0:03:01.9]} 1... Nf6 {[%clk 0:02:57.1]} 2. c4 {[%clk 0:03:03.2]}
2... b6 {[%clk 0:02:57.6]} 3. Nc3 {[%clk 0:03:02.4]} 3... Bb7 {[%clk 0:02:59]}
4. f3 {[%clk 0:03:03.6]} 4... e6 {[%clk 0:02:50]} 5. e4 {[%clk 0:03:04.4]} 5...
d5 {[%clk 0:02:51.6]} 6. e5 {[%clk 0:03:04.6]} 6... Nh5 {[%clk 0:02:52.4]} 7.
Be3 {[%clk 0:02:41.5]} 7... g6 {[%clk 0:02:43.6]} 8. cxd5 {[%clk 0:02:40.3]}
8... exd5 {[%clk 0:02:43.5]} 9. Bb5+ {[%clk 0:02:41.2]} 9... c6 {[%clk
0:02:44.2]} 10. Be2 {[%clk 0:02:42.2]} 10... Be7 {[%clk 0:02:42.8]} 11. f4
{[%clk 0:02:41.3]} 11... Ng7 {[%clk 0:02:39.2]} 12. Nf3 {[%clk 0:02:35.2]} 12...
Nd7 {[%clk 0:02:02.8]} 13. O-O {[%clk 0:02:28.6]} 13... h5 {[%clk 0:02:01.4]}
14. Rc1 {[%clk 0:02:24.5]} 14... O-O {[%clk 0:01:25.7]} 15. Kh1 {[%clk
0:02:19.3]} 15... c5 {[%clk 0:00:54.2]} 16. dxc5 {[%clk 0:02:11.9]} 16... Nxc5
{[%clk 0:00:52.5]} 17. Nd4 {[%clk 0:02:06.9]} 17... Nce6 {[%clk 0:00:40.6]} 18.
Bf3 {[%clk 0:02:01.3]} 18... Nxd4 {[%clk 0:00:36.8]} 19. Bxd4 {[%clk 0:02:00.9]}
19... Nf5 {[%clk 0:00:38.2]} 20. Bg1 {[%clk 0:02:00.7]} 20... Bc5 {[%clk
0:00:39.5]} 21. Nxd5 {[%clk 0:01:55.5]} 21... Bxd5 {[%clk 0:00:28.4]} 22. Qxd5
{[%clk 0:01:55]} 22... Bxg1 {[%clk 0:00:17.1]} 23. Kxg1 {[%clk 0:01:35.6]} 23...
Qe7 {[%clk 0:00:11.3]} 24. Qd2 {[%clk 0:01:15.1]} 24... Rad8 {[%clk 0:00:11.7]}
25. Qf2 {[%clk 0:01:15.3]} 25... Qb4 {[%clk 0:00:10.1]} 26. g3 {[%clk
0:00:24.2]} 26... Rd2 {[%clk 0:00:10.4]} 27. Qe1 {[%clk 0:00:18.6]} 27... Qd4+
{[%clk 0:00:09.4]} 28. Kh1 {[%clk 0:00:18.6]} 28... Qxb2 {[%clk 0:00:10.4]} 29.
Rb1 {[%clk 0:00:17.7]} 29... Qxa2 {[%clk 0:00:09.2]} 30. Ra1 {[%clk 0:00:17.2]}
30... Rxh2+ {[%clk 0:00:07.4]} 31. Kg1 {[%clk 0:00:17.7]} 31... Qd2 {[%clk
0:00:08.7]} 32. Qxd2 {[%clk 0:00:16.5]} 32... Rxd2 {[%clk 0:00:10.6]} 33. Rxa7
{[%clk 0:00:17.2]} 33... Nxg3 {[%clk 0:00:11.3]} 34. Re1 {[%clk 0:00:18.2]}
34... Rc8 {[%clk 0:00:10.7]} 35. Rb7 {[%clk 0:00:16.8]} 35... Rb2 {[%clk
0:00:10.2]} 36. Bd5 {[%clk 0:00:17.1]} 36... Rcc2 {[%clk 0:00:08.4]} 37. Bxf7+
{[%clk 0:00:18.1]} 37... Kf8 {[%clk 0:00:04.7]} 38. Bd5 {[%clk 0:00:19.1]} 38...
Ne2+ {[%clk 0:00:03.5]} 39. Kf2 {[%clk 0:00:13.3]} 39... Nxf4+ {[%clk
0:00:04.7]} 40. Kf3 {[%clk 0:00:15.1]} 40... Nxd5 {[%clk 0:00:06]} 41. Rd1
{[%clk 0:00:14.8]} 41... Ne7 {[%clk 0:00:06.8]} 42. Rd8+ {[%clk 0:00:14.4]}
42... Kf7 {[%clk 0:00:08.3]} 43. Rdd7 {[%clk 0:00:16.2]} 43... Rf2+ {[%clk
0:00:09.4]} 44. Kg3 {[%clk 0:00:16.7]} 44... Rg2+ {[%clk 0:00:10.7]} 45. Kh3
{[%clk 0:00:17.1]} 45... Rh2+ {[%clk 0:00:11.9]} 46. Kg3 {[%clk 0:00:18.8]}
46... Rbg2+ {[%clk 0:00:13.1]} 47. Kf3 {[%clk 0:00:20.4]} 47... Rf2+ {[%clk
0:00:14.3]} 48. Ke3 {[%clk 0:00:21.8]} 48... Re2+ {[%clk 0:00:15.2]} 49. Kf4
{[%clk 0:00:22.1]} 49... Rhf2+ {[%clk 0:00:07.4]} 50. Kg3 {[%clk 0:00:23.3]}
50... h4+ {[%clk 0:00:08.2]} 51. Kxh4 {[%clk 0:00:21]} 51... Ke6 {[%clk
0:00:09]} 52. Rxe7+ {[%clk 0:00:21.8]} 52... Kf5 {[%clk 0:00:09.6]} 53. Rf7+
{[%clk 0:00:22.4]} 53... Kxe5 {[%clk 0:00:08.6]} 54. Rxf2 {[%clk 0:00:23.5]}
54... Rxf2 {[%clk 0:00:09.9]} 55. Rxb6 {[%clk 0:00:25.1]} 55... Kf5 {[%clk
0:00:07.8]} 56. Rb5+ {[%clk 0:00:24.5]} 56... Kf6 {[%clk 0:00:09.1]} 57. Rb6+
{[%clk 0:00:25.6]} 57... Kg7 {[%clk 0:00:10.6]} 58. Kg3 {[%clk 0:00:26.4]} 58...
Rf5 {[%clk 0:00:10.9]} 59. Rb7+ {[%clk 0:00:26.4]} 59... Kh6 {[%clk 0:00:12.1]}
60. Rb8 {[%clk 0:00:27.2]} 60... Ra5 {[%clk 0:00:11.7]} 61. Rb3 {[%clk
0:00:26.2]} 61... Kg5 {[%clk 0:00:12.9]} 62. Kg2 {[%clk 0:00:27.2]} 62... Ra4
{[%clk 0:00:12.8]} 63. Rb5+ {[%clk 0:00:27.5]} 63... Kg4 {[%clk 0:00:12.9]} 64.
Rb6 {[%clk 0:00:27.8]} 64... Ra2+ {[%clk 0:00:12.9]} 65. Kg1 {[%clk 0:00:28.4]}
65... g5 {[%clk 0:00:14.3]} 66. Rb3 {[%clk 0:00:29.9]} 66... Kh4 {[%clk
0:00:15.5]} 67. Rc3 {[%clk 0:00:30.6]} 67... Rd2 {[%clk 0:00:16.1]} 68. Rb3
{[%clk 0:00:31.6]} 68... g4 {[%clk 0:00:17.2]} 69. Ra3 {[%clk 0:00:31.3]} 69...
Kg5 {[%clk 0:00:18.4]} 70. Ra5+ {[%clk 0:00:31.7]} 70... Kh4 {[%clk 0:00:19.7]}
71. Ra3 {[%clk 0:00:32.7]} 71... Re2 {[%clk 0:00:21]} 72. Rb3 {[%clk 0:00:31.5]}
72... Kg5 {[%clk 0:00:21.6]} 73. Rb5+ {[%clk 0:00:32]} 73... Kf4 {[%clk
0:00:23]} 74. Rb4+ {[%clk 0:00:32.9]} 74... Kf3 {[%clk 0:00:23.8]} 75. Rb3+
{[%clk 0:00:33.8]} 75... Kf4 {[%clk 0:00:24.9]} 76. Rb4+ {[%clk 0:00:34.8]}
76... Kg3 {[%clk 0:00:26.3]} 77. Rb3+ {[%clk 0:00:35.8]} 77... Kh4 {[%clk
0:00:27.8]} 78. Ra3 {[%clk 0:00:37]} 78... g3 {[%clk 0:00:29.1]} 79. Ra8 {[%clk
0:00:37.4]} 79... Re4 {[%clk 0:00:28.9]} 80. Rh8+ {[%clk 0:00:37.7]} 80... Kg4
{[%clk 0:00:30.5]} 81. Rg8+ {[%clk 0:00:38.8]} 81... Kf3 {[%clk 0:00:32.1]} 82.
Rf8+ {[%clk 0:00:39.8]} 82... Rf4 {[%clk 0:00:34]} 83. Rxf4+ {[%clk 0:00:40.8]}
83... Kxf4 {[%clk 0:00:35.9]} 84. Kg2 {[%clk 0:00:42.3]} 84... Kg4 {[%clk
0:00:37.8]} 85. Kg1 {[%clk 0:00:43.6]} 85... Kh3 {[%clk 0:00:39.7]} 86. Kh1
{[%clk 0:00:44.8]} 86... Kg4 {[%clk 0:00:40.3]} 87. Kg2 {[%clk 0:00:45.9]} 87...
Kf4 {[%clk 0:00:41.4]} 88. Kg1 {[%clk 0:00:47.1]} 88... Kf3 {[%clk 0:00:43.3]}
89. Kf1 {[%clk 0:00:48.4]} 89... g2+ {[%clk 0:00:44.5]} 90. Kg1 {[%clk
0:00:49.8]} 90... Kg3 {[%clk 0:00:46.4]} 1/2-1/2

[Event "*** Titled Tuesday Blitz"]
[Site "Chess.com"]
[Date "2020.02.04"]
[Round "5"]
[White "doons21"]
[Black "kesarev"]
[Result "1/2-1/2"]
[WhiteElo "2644"]
[BlackElo "2458"]
[TimeControl "180+2"]
[EndTime "10:10:50 PST"]
[Termination "Game drawn - insufficient material"]

1. e4 {[%clk 0:03:01.9]} 1... Nc6 {[%clk 0:03:00.6]} 2. d3 {[%clk 0:03:02.1]}
2... e5 {[%clk 0:03:00.1]} 3. Nd2 {[%clk 0:03:03.6]} 3... a5 {[%clk 0:02:59.9]}
4. Ngf3 {[%clk 0:03:04.9]} 4... Bc5 {[%clk 0:03:00.8]} 5. g3 {[%clk 0:03:03.9]}
5... d6 {[%clk 0:03:00.8]} 6. Bg2 {[%clk 0:03:05.2]} 6... f5 {[%clk 0:02:59.5]}
7. Nh4 {[%clk 0:03:01.4]} 7... Qf6 {[%clk 0:02:01.2]} 8. Nxf5 {[%clk 0:02:45.1]}
8... Bxf5 {[%clk 0:02:01.8]} 9. exf5 {[%clk 0:02:46.2]} 9... Qxf5 {[%clk
0:02:02.3]} 10. O-O {[%clk 0:02:41.5]} 10... Nge7 {[%clk 0:01:58]} 11. Ne4
{[%clk 0:02:36.4]} 11... Bb6 {[%clk 0:01:57]} 12. Be3 {[%clk 0:02:37.1]} 12...
O-O-O {[%clk 0:01:36.6]} 13. Bxb6 {[%clk 0:02:30.5]} 13... cxb6 {[%clk
0:01:37.5]} 14. h4 {[%clk 0:02:26]} 14... h6 {[%clk 0:01:27.6]} 15. Kh2 {[%clk
0:02:12.5]} 15... Kc7 {[%clk 0:01:26.1]} 16. a3 {[%clk 0:02:09.7]} 16... d5
{[%clk 0:01:17.1]} 17. Nc3 {[%clk 0:02:10]} 17... g5 {[%clk 0:01:17.1]} 18. Nb5+
{[%clk 0:02:00.5]} 18... Kb8 {[%clk 0:01:16.7]} 19. Qf3 {[%clk 0:02:01.5]} 19...
gxh4 {[%clk 0:01:02.3]} 20. gxh4 {[%clk 0:01:55.3]} 20... Qxf3 {[%clk
0:00:51.2]} 21. Bxf3 {[%clk 0:01:56.1]} 21... Rdf8 {[%clk 0:00:52.8]} 22. Bg2
{[%clk 0:01:32.2]} 22... Rf4 {[%clk 0:00:49.9]} 23. Kh3 {[%clk 0:00:47.7]} 23...
Nf5 {[%clk 0:00:39.7]} 24. Bxd5 {[%clk 0:00:47.1]} 24... Nce7 {[%clk 0:00:38.2]}
25. Be6 {[%clk 0:00:41.3]} 25... Rxh4+ {[%clk 0:00:27.7]} 26. Kg2 {[%clk
0:00:42.2]} 26... Rf8 {[%clk 0:00:25.3]} 27. Rh1 {[%clk 0:00:31.9]} 27... Rg4+
{[%clk 0:00:19.8]} 28. Kf3 {[%clk 0:00:28.8]} 28... Rg6 {[%clk 0:00:17.5]} 29.
Bxf5 {[%clk 0:00:27.1]} 29... Rxf5+ {[%clk 0:00:18.2]} 30. Ke2 {[%clk
0:00:26.4]} 30... Rg2 {[%clk 0:00:18.4]} 31. Raf1 {[%clk 0:00:27.6]} 31... h5
{[%clk 0:00:19.2]} 32. c4 {[%clk 0:00:25.7]} 32... Ng6 {[%clk 0:00:16.2]} 33.
Rhg1 {[%clk 0:00:22]} 33... Nf4+ {[%clk 0:00:13.3]} 34. Ke3 {[%clk 0:00:19.2]}
34... h4 {[%clk 0:00:13.5]} 35. Ke4 {[%clk 0:00:18]} 35... Rfg5 {[%clk
0:00:14.1]} 36. Rh1 {[%clk 0:00:15.6]} 36... h3 {[%clk 0:00:14.4]} 37. Nd6
{[%clk 0:00:16.1]} 37... h2 {[%clk 0:00:14.2]} 38. Nf7 {[%clk 0:00:16.8]} 38...
R5g4 {[%clk 0:00:13.9]} 39. Nxe5 {[%clk 0:00:17.7]} 39... Rh4 {[%clk 0:00:12.4]}
40. Nf3 {[%clk 0:00:18.2]} 40... Rhg4 {[%clk 0:00:13]} 41. Nxh2 {[%clk 0:00:19]}
41... Rh4 {[%clk 0:00:08.7]} 42. Nf3 {[%clk 0:00:20.2]} 42... Rxh1 {[%clk
0:00:09.1]} 43. Rxh1 {[%clk 0:00:20.8]} 43... Ne6 {[%clk 0:00:10.5]} 44. Rh8+
{[%clk 0:00:21.5]} 44... Ka7 {[%clk 0:00:11.4]} 45. Ke3 {[%clk 0:00:21.1]} 45...
Nc5 {[%clk 0:00:11.1]} 46. d4 {[%clk 0:00:22.4]} 46... Na4 {[%clk 0:00:12]} 47.
b4 {[%clk 0:00:23.1]} 47... Nb2 {[%clk 0:00:12.5]} 48. c5 {[%clk 0:00:23.2]}
48... Nc4+ {[%clk 0:00:13.2]} 49. Ke2 {[%clk 0:00:24.1]} 49... Nxa3 {[%clk
0:00:14.2]} 50. b5 {[%clk 0:00:25.3]} 50... Nxb5 {[%clk 0:00:14.2]} 51. Rh7
{[%clk 0:00:26.1]} 51... bxc5 {[%clk 0:00:14.4]} 52. dxc5 {[%clk 0:00:27.4]}
52... Ka6 {[%clk 0:00:13.1]} 53. Rh6+ {[%clk 0:00:25.7]} 53... Ka7 {[%clk
0:00:14]} 54. Rh7 {[%clk 0:00:27.1]} 54... Kb8 {[%clk 0:00:15.1]} 55. Ne5 {[%clk
0:00:27.9]} 55... a4 {[%clk 0:00:15.6]} 56. Nd7+ {[%clk 0:00:28.5]} 56... Ka7
{[%clk 0:00:16.2]} 57. Nb6 {[%clk 0:00:27]} 57... a3 {[%clk 0:00:17.3]} 58. Rh8
{[%clk 0:00:25.7]} 58... Nc7 {[%clk 0:00:18.4]} 59. Rh4 {[%clk 0:00:24.3]} 59...
Ka6 {[%clk 0:00:18]} 60. Ra4+ {[%clk 0:00:24.9]} 60... Kb5 {[%clk 0:00:19.3]}
61. Rxa3 {[%clk 0:00:26.8]} 61... Kxc5 {[%clk 0:00:20.6]} 62. Nd7+ {[%clk
0:00:28.3]} 62... Kd6 {[%clk 0:00:21.5]} 63. Nf6 {[%clk 0:00:27.9]} 63... b5
{[%clk 0:00:20.2]} 64. Ne4+ {[%clk 0:00:24.5]} 64... Kd5 {[%clk 0:00:20]} 65.
Kf3 {[%clk 0:00:24.1]} 65... Rg8 {[%clk 0:00:19.9]} 66. Rd3+ {[%clk 0:00:25.2]}
66... Kc6 {[%clk 0:00:20.9]} 67. Rc3+ {[%clk 0:00:25.3]} 67... Kb6 {[%clk
0:00:22.1]} 68. Rd3 {[%clk 0:00:23.6]} 68... Rf8+ {[%clk 0:00:22.6]} 69. Ke3
{[%clk 0:00:24.9]} 69... b4 {[%clk 0:00:22.4]} 70. f4 {[%clk 0:00:23.8]} 70...
Kb5 {[%clk 0:00:21.4]} 71. Rd7 {[%clk 0:00:20.2]} 71... Ne6 {[%clk 0:00:21.1]}
72. Rb7+ {[%clk 0:00:15.4]} 72... Kc4 {[%clk 0:00:21.7]} 73. f5 {[%clk
0:00:14.5]} 73... Nd8 {[%clk 0:00:20.1]} 74. Rb8 {[%clk 0:00:13.6]} 74... b3
{[%clk 0:00:20.7]} 75. Nd2+ {[%clk 0:00:11.4]} 75... Kd5 {[%clk 0:00:19.3]} 76.
Nxb3 {[%clk 0:00:11.5]} 76... Re8+ {[%clk 0:00:09.6]} 77. Kf4 {[%clk 0:00:11.4]}
77... Re4+ {[%clk 0:00:09.1]} 78. Kg5 {[%clk 0:00:12.5]} 78... Nf7+ {[%clk
0:00:10.2]} 79. Kf6 {[%clk 0:00:13.9]} 79... Nd6 {[%clk 0:00:10.4]} 80. Ra8
{[%clk 0:00:12.5]} 80... Rb4 {[%clk 0:00:07.7]} 81. Ra5+ {[%clk 0:00:13]} 81...
Kc6 {[%clk 0:00:08.8]} 82. Nc5 {[%clk 0:00:12]} 82... Rf4 {[%clk 0:00:08.9]} 83.
Ne6 {[%clk 0:00:07.8]} 83... Rxf5+ {[%clk 0:00:10]} 84. Rxf5 {[%clk 0:00:09.7]}
84... Nxf5 {[%clk 0:00:11.7]} 1/2-1/2

[Event "*** Titled Tuesday Blitz"]
[Site "Chess.com"]
[Date "2020.02.04"]
[Round "5"]
[White "malandragem"]
[Black "Mr_Sinigami"]
[Result "1/2-1/2"]
[WhiteElo "2293"]
[BlackElo "2717"]
[TimeControl "180+2"]
[EndTime "10:11:05 PST"]
[Termination "Game drawn by 50-move rule"]

1. e4 {[%clk 0:03:01.9]} 1... d5 {[%clk 0:02:57.7]} 2. exd5 {[%clk 0:03:02.7]}
2... Qxd5 {[%clk 0:02:45.9]} 3. d4 {[%clk 0:03:03.4]} 3... Nc6 {[%clk
0:02:45.8]} 4. Nf3 {[%clk 0:02:58.8]} 4... Bg4 {[%clk 0:02:46.7]} 5. Be2 {[%clk
0:02:49.6]} 5... O-O-O {[%clk 0:02:47.2]} 6. Nc3 {[%clk 0:02:33.9]} 6... Qa5
{[%clk 0:02:39]} 7. Be3 {[%clk 0:02:33.7]} 7... e5 {[%clk 0:02:34.6]} 8. Nxe5
{[%clk 0:02:24.3]} 8... Bxe2 {[%clk 0:02:33.5]} 9. Qxe2 {[%clk 0:02:26.1]} 9...
Nxe5 {[%clk 0:02:31.6]} 10. dxe5 {[%clk 0:02:28]} 10... Qxe5 {[%clk 0:02:30.9]}
11. O-O {[%clk 0:02:27.6]} 11... Nf6 {[%clk 0:02:31.9]} 12. Qf3 {[%clk
0:02:22.9]} 12... Bb4 {[%clk 0:02:23.5]} 13. Bxa7 {[%clk 0:02:02.5]} 13... Bxc3
{[%clk 0:02:20.2]} 14. bxc3 {[%clk 0:02:04.2]} 14... Qe4 {[%clk 0:02:18.2]} 15.
Qxe4 {[%clk 0:01:55.6]} 15... Nxe4 {[%clk 0:02:20.1]} 16. Bd4 {[%clk 0:01:57.2]}
16... f6 {[%clk 0:02:18]} 17. a4 {[%clk 0:01:58.4]} 17... Rhe8 {[%clk
0:02:07.1]} 18. a5 {[%clk 0:01:59.6]} 18... Re6 {[%clk 0:02:05.9]} 19. f3 {[%clk
0:01:57.4]} 19... Nd2 {[%clk 0:02:04.4]} 20. Rfd1 {[%clk 0:01:51]} 20... Nc4
{[%clk 0:02:04.9]} 21. Kf2 {[%clk 0:01:47.7]} 21... Ra6 {[%clk 0:02:03.3]} 22.
Re1 {[%clk 0:01:42.2]} 22... Kd7 {[%clk 0:01:42.5]} 23. Re4 {[%clk 0:01:26.1]}
23... Re8 {[%clk 0:01:32.8]} 24. Rh4 {[%clk 0:01:12.1]} 24... Rxa5 {[%clk
0:01:18.2]} 25. Rxa5 {[%clk 0:01:07.4]} 25... Nxa5 {[%clk 0:01:20.1]} 26. Rxh7
{[%clk 0:01:09]} 26... Re7 {[%clk 0:01:21.2]} 27. h4 {[%clk 0:01:07.1]} 27...
Nc6 {[%clk 0:01:22.3]} 28. h5 {[%clk 0:01:06.3]} 28... b5 {[%clk 0:01:19]} 29.
h6 {[%clk 0:01:01.2]} 29... gxh6 {[%clk 0:01:17.6]} 30. Rxh6 {[%clk 0:01:03.1]}
30... Nxd4 {[%clk 0:01:14.7]} 31. cxd4 {[%clk 0:01:05]} 31... Re6 {[%clk
0:01:09.4]} 32. d5 {[%clk 0:01:03.7]} 32... Rd6 {[%clk 0:01:06.3]} 33. Rh7+
{[%clk 0:00:58.7]} 33... Kc8 {[%clk 0:01:05.6]} 34. Rh5 {[%clk 0:01:00.6]} 34...
c6 {[%clk 0:00:58.2]} 35. dxc6 {[%clk 0:00:54.1]} 35... Rxc6 {[%clk 0:00:59]}
36. Rxb5 {[%clk 0:00:55.7]} 36... Rxc2+ {[%clk 0:01:00]} 37. Kg3 {[%clk
0:00:55.3]} 37... Kd7 {[%clk 0:01:01.1]} 38. f4 {[%clk 0:00:52.2]} 38... Ke7
{[%clk 0:01:01.2]} 39. f5 {[%clk 0:00:44.4]} 39... Rc4 {[%clk 0:00:56.4]} 40.
Rb7+ {[%clk 0:00:41.7]} 40... Kd6 {[%clk 0:00:55.1]} 41. Kf3 {[%clk 0:00:39.2]}
41... Ra4 {[%clk 0:00:49.1]} 42. g4 {[%clk 0:00:36.2]} 42... Ra6 {[%clk
0:00:24.9]} 43. Kf4 {[%clk 0:00:34.4]} 43... Kd5 {[%clk 0:00:22.9]} 44. Rd7+
{[%clk 0:00:28.7]} 44... Kc6 {[%clk 0:00:23.5]} 45. Re7 {[%clk 0:00:25.1]} 45...
Kd5 {[%clk 0:00:23.4]} 46. Rd7+ {[%clk 0:00:24]} 46... Kc6 {[%clk 0:00:24.2]}
47. Rf7 {[%clk 0:00:22.8]} 47... Kd5 {[%clk 0:00:24.2]} 48. g5 {[%clk
0:00:21.5]} 48... Ra4+ {[%clk 0:00:24.3]} 49. Kg3 {[%clk 0:00:22]} 49... fxg5
{[%clk 0:00:25.2]} 50. Re7 {[%clk 0:00:14.7]} 50... Rf4 {[%clk 0:00:22.5]} 51.
f6 {[%clk 0:00:13.8]} 51... Kd6 {[%clk 0:00:19.7]} 52. Re1 {[%clk 0:00:14]}
52... Rxf6 {[%clk 0:00:18.8]} 53. Kg4 {[%clk 0:00:15.4]} 53... Rf4+ {[%clk
0:00:19.9]} 54. Kxg5 {[%clk 0:00:16.4]} 54... Rd4 {[%clk 0:00:21.8]} 55. Rf1
{[%clk 0:00:17.6]} 55... Rd5+ {[%clk 0:00:22.4]} 56. Kg6 {[%clk 0:00:18.5]}
56... Rd2 {[%clk 0:00:22.6]} 57. Kg5 {[%clk 0:00:19.2]} 57... Kd5 {[%clk
0:00:23.2]} 58. Kg6 {[%clk 0:00:20.7]} 58... Kc4 {[%clk 0:00:24]} 59. Kg5 {[%clk
0:00:22.1]} 59... Rd5+ {[%clk 0:00:24.9]} 60. Kg6 {[%clk 0:00:23.5]} 60... Rd6+
{[%clk 0:00:26]} 61. Kg5 {[%clk 0:00:24.5]} 61... Rd8 {[%clk 0:00:26.9]} 62. Rf7
{[%clk 0:00:23.5]} 62... Rg8+ {[%clk 0:00:27.1]} 63. Kf5 {[%clk 0:00:24.3]}
63... Rc8 {[%clk 0:00:27.8]} 64. Rd7 {[%clk 0:00:24.6]} 64... Kb5 {[%clk
0:00:28.1]} 65. Ke4 {[%clk 0:00:25.2]} 65... Kc6 {[%clk 0:00:28.4]} 66. Rd1
{[%clk 0:00:25.9]} 66... Re8+ {[%clk 0:00:28.4]} 67. Kf5 {[%clk 0:00:27.4]}
67... Rf8+ {[%clk 0:00:28.9]} 68. Ke6 {[%clk 0:00:28.8]} 68... Re8+ {[%clk
0:00:29.3]} 69. Kf7 {[%clk 0:00:30.2]} 69... Re4 {[%clk 0:00:29.8]} 70. Kf6
{[%clk 0:00:31.3]} 70... Rc4 {[%clk 0:00:30.6]} 71. Ke6 {[%clk 0:00:31.2]} 71...
Rc2 {[%clk 0:00:31]} 72. Ke5 {[%clk 0:00:30.7]} 72... Re2+ {[%clk 0:00:30.5]}
73. Kf6 {[%clk 0:00:31.3]} 73... Re8 {[%clk 0:00:31.3]} 74. Kf7 {[%clk
0:00:32.3]} 74... Re3 {[%clk 0:00:31.8]} 75. Kf6 {[%clk 0:00:33.5]} 75... Kc5
{[%clk 0:00:33.1]} 76. Kf5 {[%clk 0:00:34.6]} 76... Kc4 {[%clk 0:00:34.3]} 77.
Kf6 {[%clk 0:00:35.8]} 77... Kc3 {[%clk 0:00:34.7]} 78. Kf5 {[%clk 0:00:37]}
78... Kc2 {[%clk 0:00:35.8]} 79. Rd7 {[%clk 0:00:38.1]} 79... Re1 {[%clk
0:00:36.1]} 80. Kf6 {[%clk 0:00:38.8]} 80... Rf1+ {[%clk 0:00:36.9]} 81. Ke6
{[%clk 0:00:40]} 81... Re1+ {[%clk 0:00:37.9]} 82. Kf6 {[%clk 0:00:41.4]} 82...
Rf1+ {[%clk 0:00:38.5]} 83. Ke6 {[%clk 0:00:42.9]} 83... Kb3 {[%clk 0:00:39.6]}
84. Rc7 {[%clk 0:00:43.5]} 84... Kb4 {[%clk 0:00:40]} 85. Rc8 {[%clk 0:00:43.8]}
85... Kb5 {[%clk 0:00:40.9]} 86. Rc2 {[%clk 0:00:44.1]} 86... Re1+ {[%clk
0:00:41]} 87. Kd5 {[%clk 0:00:43.4]} 87... Rd1+ {[%clk 0:00:41.5]} 88. Ke5
{[%clk 0:00:44.9]} 88... Rd8 {[%clk 0:00:41.8]} 89. Ke6 {[%clk 0:00:45.9]} 89...
Kb6 {[%clk 0:00:40]} 90. Ke5 {[%clk 0:00:47]} 90... Re8+ {[%clk 0:00:40.6]} 91.
Kd6 {[%clk 0:00:48]} 91... Rd8+ {[%clk 0:00:39.5]} 92. Ke5 {[%clk 0:00:49.3]}
92... Kb7 {[%clk 0:00:40]} 93. Ke6 {[%clk 0:00:49.9]} 93... Re8+ {[%clk
0:00:40.6]} 94. Kd7 {[%clk 0:00:47.2]} 94... Re3 {[%clk 0:00:40.6]} 95. Rb2+
{[%clk 0:00:48]} 95... Ka6 {[%clk 0:00:41.5]} 96. Kc6 {[%clk 0:00:48.7]} 96...
Rc3+ {[%clk 0:00:42.1]} 97. Kd6 {[%clk 0:00:50.1]} 97... Ka5 {[%clk 0:00:43]}
98. Kd5 {[%clk 0:00:48.8]} 98... Ka4 {[%clk 0:00:43.8]} 99. Kd4 {[%clk
0:00:49.1]} 99... Rc8 {[%clk 0:00:44.7]} 100. Rb1 {[%clk 0:00:49.5]} 100... Ka3
{[%clk 0:00:45.7]} 101. Kd3 {[%clk 0:00:49.2]} 101... Ka2 {[%clk 0:00:46.6]}
102. Rb7 {[%clk 0:00:50.8]} 102... Rd8+ {[%clk 0:00:46.8]} 103. Kc2 {[%clk
0:00:50.4]} 103... Ra8 {[%clk 0:00:46.5]} 104. Kc3 {[%clk 0:00:45.7]} 1/2-1/2